fUST/lending_fUST_20250302
["ID","MTS","AMOUNT","RATE_DAILY","PERIOD"]
[355070532,1740886297956,-500.0,0.00025447,2]
[355070533,1740886297966,-1052.31,0.00025447,2]
[355070534,1740886297975,-1446.78,0.00025447,2]
[355070535,1740886297986,-500.0,0.00025447,2]
[355070536,1740886297996,-500.0,0.00025447,2]
[355070537,1740886298006,-607.0,0.00025447,2]
[355070538,1740886298015,-500.0,0.00025447,2]
[355070539,1740886298025,-500.0,0.00025447,2]
[355070540,1740886298035,-500.0,0.00025447,2]
[355070541,1740886298044,-500.0,0.00025447,2]
[355070542,1740886298054,-500.0,0.00025447,2]
[355070543,1740886298064,-500.0,0.00025447,2]
[355070544,1740886298073,-500.0,0.00025447,2]
[355070545,1740886298084,-500.0,0.00025447,2]
[355070546,1740886298093,-500.0,0.00025447,2]
[355070547,1740886298104,-1818.63,0.00025447,2]
[355070548,1740886298115,-500.0,0.00025447,2]
[355070549,1740886298124,-500.0,0.00025447,2]
[355070550,1740886298134,-500.0,0.00025447,2]
[355070551,1740886298144,-500.0,0.00025447,2]
[355070552,1740886298154,-500.0,0.00025447,2]
[355070553,1740886298163,-500.0,0.00025447,2]
[355070554,1740886298172,-618.37,0.00025447,2]
[355070555,1740886298182,-500.0,0.00025447,2]
[355070556,1740886298192,-604.16,0.00025447,2]
[355070557,1740886298201,-500.0,0.00025447,2]
[355070558,1740886298210,-505.70138815,0.00025447,2]
[355070559,1740886298219,-500.0,0.00025447,2]
[355070560,1740886298230,-500.0,0.00025447,2]
[355070561,1740886298242,-500.0,0.00025447,2]
[355070562,1740886298252,-500.0,0.00025447,2]
[355070563,1740886298262,-505.69179935,0.00025447,2]
[355070564,1740886298272,-500.0,0.00025447,2]
[355070565,1740886298282,-508.25014322,0.00025447,2]
[355070566,1740886298292,-500.0,0.00025447,2]
[355070567,1740886298302,-500.0,0.00025447,2]
[355070568,1740886298313,-938.5,0.00025447,2]
[355070569,1740886298323,-500.0,0.00025447,2]
[355070570,1740886298333,-500.0,0.00025447,2]
[355070571,1740886298343,-500.0,0.00025447,2]
[355070572,1740886298353,-801.7,0.00025447,2]
[355070573,1740886298362,-500.0,0.00025447,2]
[355070574,1740886298372,-500.0,0.00025447,2]
[355070575,1740886298381,-500.0,0.00025447,2]
[355070576,1740886298391,-527.95930407,0.00025447,2]
[355070577,1740886298401,-500.0,0.00025447,2]
[355070578,1740886298410,-1129.81,0.00025447,2]
[355070579,1740886298420,-8270.53,0.00025447,2]
[355070580,1740886298429,-500.0,0.00025447,2]
[355070581,1740886298439,-1547.95,0.00025447,2]
[355070582,1740886298450,-500.0,0.00025447,2]
[355070583,1740886298459,-27555.16,0.00025447,2]
[355070584,1740886298469,-1394.09,0.00025447,2]
[355070585,1740886298479,-1310.16,0.00025447,2]
[355070586,1740886298490,-500.0,0.00025447,2]
[355070587,1740886298499,-1400.07,0.00025447,2]
[355070588,1740886298509,-3117.57,0.00025447,2]
[355070589,1740886298519,-2046.05,0.00025447,2]
[355070590,1740886298529,-500.0,0.00025447,2]
[355070591,1740886298540,-3193.9,0.00025447,2]
[355070592,1740886298550,-500.0,0.00025447,2]
[355070593,1740886298559,-2337.31,0.00025447,2]
[355070594,1740886298569,-504.09139399,0.00025447,2]
[355070595,1740886298578,-500.0,0.00025447,2]
[355070596,1740886298590,-617.74,0.00025447,2]
[355070597,1740886298600,-281943.9,0.00025447,2]
[355070598,1740886298610,-500.0,0.00025447,2]
[355070599,1740886298620,-737.91,0.00025447,2]
[355070600,1740886298630,-549.97,0.00025447,2]
[355070601,1740886298639,-6435.74,0.00025447,2]
[355070602,1740886298649,-500.0,0.00025447,2]
[355070603,1740886298659,-500.0,0.00025447,2]
[355070604,1740886298668,-3670.05,0.00025447,2]
[355070605,1740886298677,-500.0,0.00025447,2]
[355070606,1740886298688,-500.0,0.00025447,2]
[355070607,1740886298889,-263.56159664,0.00025447,2]
[355070608,1740886298899,-633.60688388,0.00025447,2]
[355070609,1740886298910,-8285.81,0.00025447,2]
[355070610,1740886298920,-500.0,0.00025447,2]
[355070611,1740886298929,-500.0,0.00025447,2]
[355070612,1740886298939,-794.47,0.00025447,2]
[355070613,1740886298949,-500.0,0.00025447,2]
[355070614,1740886298959,-500.0,0.00025447,2]
[355070615,1740886298969,-1888.44,0.00025447,2]
[355070616,1740886298978,-500.0,0.00025447,2]
[355070617,1740886298988,-1071.59,0.00025447,2]
[355070618,1740886298999,-500.0,0.00025447,2]
[355070619,1740886299009,-503.99717618,0.00025447,2]
[355070620,1740886299019,-603.56,0.00025447,2]
[355070621,1740886299028,-1646.49,0.00025447,2]
[355070622,1740886299038,-500.0,0.00025447,2]
[355070623,1740886299048,-500.0,0.00025447,2]
[355070624,1740886299058,-2181.0,0.00025447,2]
[355070625,1740886299068,-500.0,0.00025447,2]
[355070626,1740886299078,-500.0,0.00025447,2]
[355070627,1740886299088,-2015.79,0.00025447,2]
[355070628,1740886299097,-500.0,0.00025447,2]
[355070629,1740886299107,-500.0,0.00025447,2]
[355070630,1740886299117,-500.0,0.00025447,2]
[355070631,1740886299128,-1677.97,0.00025447,2]
[355070632,1740886299137,-2507.59,0.00025447,2]
[355070633,1740886299147,-500.0,0.00025447,2]
[355070634,1740886299157,-500.0,0.00025447,2]
[355070635,1740886299167,-500.0,0.00025447,2]
[355070636,1740886299177,-500.0,0.00025447,2]
[355070637,1740886299186,-500.0,0.00025447,2]
[355070638,1740886299196,-500.0,0.00025447,2]
[355070639,1740886299206,-500.0,0.00025447,2]
[355070640,1740886299216,-500.0,0.00025447,2]
[355070641,1740886299225,-500.0,0.00025447,2]
[355070642,1740886299235,-900.0,0.00025469,3]
[355070643,1740886299248,-151.13323058,0.00025478,2]
[355070644,1740886299258,-335.98905302,0.00025478,2]
[355070645,1740886299267,-500.0,0.00025479,2]
[355070646,1740886299277,-271.795335,0.00025479,7]
[355070647,1740886299287,-151.0,0.00025479,7]
[355070648,1740886299297,-162.166992,0.00025479,7]
[355070649,1740886299306,-162.166992,0.00025479,7]
[355070650,1740886299316,-151.0,0.00025479,7]
[355070651,1740886299326,-557.825016,0.00025479,2]
[355070652,1740886299335,-5000.0,0.000255,2]
[355070653,1740886299345,-955.31192154,0.000255,2]
[355070654,1740886299355,-500.0,0.000255,2]
[355070655,1740886299365,-1500.0,0.000255,2]
[355070656,1740886299375,-156.45923289,0.00025534,2]
[355070657,1740886299385,-167.471,0.00025548,2]
[355070658,1740886299395,-200.0,0.0002555,16]
[355070659,1740886299405,-687.36,0.00025556,2]
[355070660,1740886299415,-1084.31,0.00025556,2]
[355070661,1740886299425,-896.18,0.00025556,2]
[355070662,1740886299434,-500.0,0.00025556,2]
[355070663,1740886299444,-500.0,0.00025556,2]
[355070664,1740886299453,-1218.11,0.00025556,2]
[355070665,1740886299463,-828.57,0.00025556,2]
[355070666,1740886299473,-500.0,0.00025556,2]
[355070667,1740886299483,-695.69,0.00025556,2]
[355070668,1740886299493,-500.0,0.00025556,2]
[355070669,1740886299502,-500.0,0.00025556,2]
[355070670,1740886299512,-500.0,0.00025556,2]
[355070671,1740886299521,-500.0,0.00025556,2]
[355070672,1740886299531,-1314.21,0.00025556,2]
[355070673,1740886299541,-905.22,0.00025556,2]
[355070674,1740886299551,-500.0,0.00025556,2]
[355070675,1740886299560,-500.0,0.00025556,2]
[355070676,1740886299570,-614.99,0.00025556,2]
[355070677,1740886299579,-1289.22,0.00025556,2]
[355070678,1740886299589,-598.14,0.00025556,2]
[355070679,1740886299601,-2226.86,0.00025556,2]
[355070680,1740886299610,-2581.24,0.00025556,2]
[355070681,1740886299619,-500.0,0.00025556,2]
[355070682,1740886299629,-1739.44,0.00025556,2]
[355070683,1740886299639,-500.0,0.00025556,2]
[355070684,1740886299649,-1169.44,0.00025556,2]
[355070685,1740886299658,-500.0,0.00025556,2]
[355070686,1740886299668,-756.25,0.00025556,2]
[355070687,1740886299678,-500.0,0.00025556,2]
[355070688,1740886299687,-1204.9,0.00025556,2]
[355070689,1740886299696,-500.0,0.00025556,2]
[355070690,1740886299706,-1004.4,0.00025556,2]
[355070691,1740886299715,-4788.78,0.00025556,2]
[355070692,1740886299725,-531.68,0.00025556,2]
[355070693,1740886299735,-3299.15,0.00025556,2]
[355070694,1740886299744,-500.0,0.00025556,2]
[355070695,1740886299754,-3768.09,0.00025556,2]
[355070696,1740886299768,-562.38459976,0.00025556,2]
[355070697,1740886299778,-1428.31,0.00025556,2]
[355070698,1740886299789,-500.0,0.00025556,2]
[355070699,1740886299799,-851.2,0.00025556,2]
[355070700,1740886299809,-2684.0,0.00025556,2]
[355070701,1740886299819,-4323.02,0.00025556,2]
[355070702,1740886299828,-500.0,0.00025556,2]
[355070703,1740886299838,-782.1,0.00025556,2]
[355070704,1740886299849,-590.63,0.00025556,2]
[355070705,1740886299858,-1784.14,0.00025556,2]
[355070706,1740886299869,-1315.96,0.00025556,2]
[355070707,1740886299880,-659.17,0.00025556,2]
[355070708,1740886299890,-500.0,0.00025556,2]
[355070709,1740886299900,-519.89410569,0.00025556,2]
[355070710,1740886299910,-1228.88,0.00025556,2]
[355070711,1740886299919,-666.93,0.00025556,2]
[355070712,1740886299928,-1449.12,0.00025556,2]
[355070713,1740886299938,-500.0,0.00025556,2]
[355070714,1740886299948,-505.18,0.00025556,2]
[355070715,1740886299957,-500.0,0.00025556,2]
[355070716,1740886299967,-1090.34,0.00025556,2]
[355070717,1740886299977,-500.0,0.00025556,2]
[355070718,1740886299986,-2634.31,0.00025556,2]
[355070719,1740886299995,-500.0,0.00025556,2]
[355070720,1740886300004,-569.32,0.00025556,2]
[355070721,1740886300015,-6333.26,0.00025556,2]
[355070722,1740886300025,-500.0,0.00025556,2]
[355070723,1740886300035,-500.0,0.00025556,2]
[355070724,1740886300044,-500.0,0.00025556,2]
[355070725,1740886300054,-500.0,0.00025556,2]
[355070726,1740886300064,-500.0,0.00025556,2]
[355070727,1740886300073,-500.0,0.00025556,2]
[355070728,1740886300083,-500.0,0.00025556,2]
[355070729,1740886300093,-500.0,0.00025556,2]
[355070730,1740886300103,-1915.38,0.00025556,2]
[355070731,1740886300113,-151.0,0.00025557,7]
[355070732,1740886300122,-888.08,0.00025557,2]
[355070733,1740886300132,-500.0,0.00025557,2]
[355070734,1740886300142,-500.51,0.00025557,2]
[355070735,1740886300151,-500.0,0.00025557,2]
[355070736,1740886300161,-591.09,0.00025557,2]
[355070737,1740886300171,-896.52,0.00025557,2]
[355070738,1740886300180,-553.7,0.00025557,2]
[355070739,1740886300190,-225.839233,0.00025557,7]
[355070740,1740886300200,-524.51,0.00025557,2]
[355070741,1740886300209,-151.0,0.00025557,7]
[355070742,1740886300219,-1474.58,0.00025557,2]
[355070743,1740886300228,-500.0,0.00025557,2]
[355070744,1740886300241,-429.12179916,0.00025557,2]
[355070745,1740886300250,-500.0,0.00025557,2]
[355070746,1740886300259,-687.64,0.00025557,2]
[355070747,1740886300269,-521.17,0.00025557,2]
[355070748,1740886300278,-928.01,0.00025557,2]
[355070749,1740886300289,-500.0,0.00025557,2]
[355070750,1740886300301,-500.0,0.00025557,2]
[355070751,1740886300311,-500.0,0.00025557,2]
[355070752,1740886300322,-500.0,0.00025557,2]
[355070753,1740886300331,-500.0,0.00025557,2]
[355070754,1740886300340,-500.0,0.00025557,2]
[355070755,1740886300350,-583.22,0.00025557,2]
[355070756,1740886300359,-500.0,0.00025557,2]
[355070757,1740886300369,-500.0,0.00025557,2]
[355070758,1740886300379,-500.0,0.00025557,2]
[355070759,1740886300388,-513.18898898,0.00025557,2]
[355070760,1740886300398,-500.0,0.00025557,2]
[355070761,1740886300408,-500.0,0.00025557,2]
[355070762,1740886300418,-821.72,0.00025557,2]
[355070763,1740886300427,-503.3602459,0.00025557,2]
[355070764,1740886300437,-703.97,0.00025557,2]
[355070765,1740886300447,-500.0,0.00025557,2]
[355070766,1740886300456,-646.1,0.00025557,2]
[355070767,1740886300466,-1413.57,0.00025557,2]
[355070768,1740886300475,-153.578998,0.00025557,7]
[355070769,1740886300484,-153.578998,0.00025557,7]
[355070770,1740886300494,-151.0,0.00025557,7]
[355070771,1740886300503,-548.28,0.00025557,2]
[355070772,1740886300513,-1102.8,0.00025557,2]
[355070773,1740886300523,-278.660995,0.00025557,7]
[355070774,1740886300532,-694.6,0.00025557,2]
[355070775,1740886300541,-540.61,0.00025557,2]
[355070776,1740886300551,-500.0,0.00025557,2]
[355070777,1740886300560,-500.0,0.00025557,2]
[355070778,1740886300570,-623.08,0.00025557,2]
[355070779,1740886300580,-1137.28,0.00025557,2]
[355070780,1740886300590,-162.166992,0.00025557,7]
[355070781,1740886300600,-238.228071,0.00025557,7]
[355070782,1740886300610,-1017.35,0.00025557,2]
[355070783,1740886300619,-162.16699,0.00025557,7]
[355070784,1740886300629,-500.0,0.00025557,2]
[355070785,1740886300639,-1330.22,0.00025557,2]
[355070786,1740886300648,-500.0,0.00025557,2]
[355070787,1740886300658,-500.0,0.00025557,2]
[355070788,1740886300667,-500.0,0.00025557,2]
[355070789,1740886300677,-500.0,0.00025557,2]
[355070790,1740886300687,-500.0,0.00025557,2]
[355070791,1740886300696,-217.445586,0.00025557,7]
[355070792,1740886300706,-1585.715627,0.00025557,7]
[355070793,1740886300716,-500.0,0.00025557,2]
[355070794,1740886300726,-217.44558,0.00025557,7]
[355070795,1740886300737,-1066.57,0.00025557,2]
[355070796,1740886300746,-1585.715635,0.00025557,7]
[355070797,1740886300756,-500.0,0.00025557,2]
[355070798,1740886300767,-228.05025,0.00025557,7]
[355070799,1740886300777,-228.050246,0.00025557,7]
[355070800,1740886300787,-2368.56,0.00025557,2]
[355070801,1740886300796,-1359.76,0.00025557,2]
[355070802,1740886300807,-222.0,0.00025568,2]
[355070803,1740886300817,-180.0,0.00025568,2]
[355070804,1740886300827,-402.62,0.00025568,2]
[355070805,1740886300838,-553.31957896,0.000256,2]
[355070806,1740886300848,-500.0,0.000256,2]
[355070807,1740886300857,-60496.87112381,0.000256,2]
[355070808,1740886300868,-2568.22929643,0.00025621,2]
[355070809,1740886300878,-1002.04525011,0.00025624,30]
[355070810,1740886300888,-205.69271906,0.00025624,4]
[355070811,1740886300898,-225.839233,0.00025657,7]
[355070812,1740886300907,-151.0,0.00025657,7]
[355070813,1740886300916,-74891.39536629,0.0002569,2]
[355070814,1740886300926,-500.0,0.000257,2]
[355070815,1740886300936,-624.0,0.000257,2]
[355070816,1740886300946,-617.41063108,0.00025707,2]
[355070817,1740886300956,-13513.14,0.00025708,2]
[355070818,1740886300965,-7624.93,0.00025708,2]
[355070819,1740886300976,-1615.71,0.00025708,5]
[355070820,1740886300986,-2961.69,0.00025708,2]
[355070821,1740886300995,-2330.23,0.00025708,2]
[355070822,1740886301006,-2306.22,0.00025708,2]
[355070823,1740886301017,-500.0,0.00025708,2]
[355070824,1740886301028,-500.0,0.0002572,2]
[355070825,1740886301040,-500.0,0.0002572,2]
[355070826,1740886301050,-632.19,0.0002572,2]
[355070827,1740886301062,-2053.23,0.0002572,2]
[355070828,1740886301072,-1289.53,0.0002572,2]
[355070829,1740886301081,-500.0,0.0002572,2]
[355070830,1740886301090,-542.79,0.0002572,2]
[355070831,1740886301101,-500.0,0.0002572,2]
[355070832,1740886301111,-729.52,0.0002572,2]
[355070833,1740886301120,-2911.18,0.0002572,2]
[355070834,1740886301131,-543.53,0.0002572,2]
[355070835,1740886301142,-1263.1,0.0002572,2]
[355070836,1740886301152,-500.0,0.0002572,2]
[355070837,1740886301163,-2931.73,0.0002572,2]
[355070838,1740886301174,-500.0,0.0002572,2]
[355070839,1740886301184,-1979.56,0.0002572,2]
[355070840,1740886301194,-500.0,0.0002572,2]
[355070841,1740886301204,-523.18,0.0002572,2]
[355070842,1740886301214,-500.0,0.0002572,2]
[355070843,1740886301224,-500.0,0.0002572,2]
[355070844,1740886301234,-2314.06,0.0002572,2]
[355070845,1740886301248,-2260.58,0.0002572,2]
[355070846,1740886301259,-828.38,0.0002572,2]
[355070847,1740886301268,-500.0,0.0002572,2]
[355070848,1740886301278,-2081.84,0.0002572,2]
[355070849,1740886301289,-1076.19,0.0002572,2]
[355070850,1740886301299,-1339.9,0.0002572,2]
[355070851,1740886301308,-500.0,0.0002572,2]
[355070852,1740886301319,-500.0,0.0002572,2]
[355070853,1740886301331,-500.0,0.0002572,2]
[355070854,1740886301342,-3469.31,0.0002572,2]
[355070855,1740886301354,-1990.46,0.0002572,2]
[355070856,1740886301365,-971.07,0.0002572,2]
[355070857,1740886301374,-1249.98,0.0002572,2]
[355070858,1740886301384,-2179.06,0.0002572,2]
[355070859,1740886301395,-1012.24,0.0002572,2]
[355070860,1740886301404,-3060.91,0.0002572,2]
[355070861,1740886301414,-559.99,0.0002572,2]
[355070862,1740886301423,-615.9,0.0002572,2]
[355070863,1740886301433,-1996.5,0.0002572,2]
[355070864,1740886301443,-4060.12,0.0002572,2]
[355070865,1740886301452,-10606.09,0.0002572,2]
[355070866,1740886301462,-2799.89,0.0002572,2]
[355070867,1740886301471,-1333.19,0.0002572,2]
[355070868,1740886301480,-719.18,0.0002572,2]
[355070869,1740886301490,-835.72,0.0002572,2]
[355070870,1740886301500,-1367.07,0.0002572,2]
[355070871,1740886301509,-2939.4,0.0002572,2]
[355070872,1740886301518,-1214.18,0.0002572,2]
[355070873,1740886301528,-511.70220545,0.0002572,2]
[355070874,1740886301539,-4481.86,0.0002572,2]
[355070875,1740886301548,-548.69,0.0002572,2]
[355070876,1740886301558,-659.46,0.0002572,2]
[355070877,1740886301568,-4158.95,0.0002572,2]
[355070878,1740886301578,-500.0,0.0002572,2]
[355070879,1740886301588,-848.25,0.0002572,2]
[355070880,1740886301598,-25489.85,0.0002572,2]
[355070881,1740886301608,-1593.02,0.0002572,2]
[355070882,1740886301618,-3140.53,0.0002572,2]
[355070883,1740886301628,-500.0,0.0002572,2]
[355070884,1740886301637,-716.21,0.0002572,2]
[355070885,1740886301647,-500.0,0.0002572,2]
[355070886,1740886301657,-4639.3,0.0002572,2]
[355070887,1740886301667,-500.0,0.0002572,2]
[355070888,1740886301676,-14182.49,0.0002572,2]
[355070889,1740886301686,-1188.6,0.0002572,2]
[355070890,1740886301697,-592.63,0.0002572,2]
[355070891,1740886301708,-1643.74,0.0002572,2]
[355070892,1740886301718,-12307.96,0.0002572,2]
[355070893,1740886301728,-1368.42,0.0002572,2]
[355070894,1740886301738,-669.91,0.0002572,2]
[355070895,1740886301748,-500.0,0.0002572,2]
[355070896,1740886301758,-3975.37,0.0002572,2]
[355070897,1740886301768,-501.67,0.0002572,2]
[355070898,1740886301778,-1802.14,0.0002572,2]
[355070899,1740886301788,-962.58,0.0002572,2]
[355070900,1740886301797,-789.66,0.0002572,2]
[355070901,1740886301807,-1159.12,0.0002572,2]
[355070902,1740886301817,-20055.8,0.0002572,2]
[355070903,1740886301826,-2419.35,0.0002572,2]
[355070904,1740886301836,-4017.73,0.0002572,2]
[355070905,1740886301846,-500.0,0.0002572,2]
[355070906,1740886301857,-2550.68,0.0002572,2]
[355070907,1740886301866,-1400.73,0.0002572,2]
[355070908,1740886301876,-596.32,0.0002572,2]
[355070909,1740886301886,-718.57,0.0002572,2]
[355070910,1740886301895,-1849.98,0.0002572,2]
[355070911,1740886301904,-18199.11,0.0002572,2]
[355070912,1740886301915,-500.0,0.0002572,2]
[355070913,1740886301925,-500.0,0.0002572,2]
[355070914,1740886301935,-6307.07,0.0002572,2]
[355070915,1740886301944,-564.98506653,0.0002572,2]
[355070916,1740886301953,-3500.41,0.0002572,2]
[355070917,1740886301963,-500.0,0.0002572,2]
[355070918,1740886301973,-740.47,0.0002572,2]
[355070919,1740886301982,-500.0,0.0002572,2]
[355070920,1740886301991,-1093.67,0.0002572,2]
[355070921,1740886302001,-11719.04,0.0002572,2]
[355070922,1740886302011,-2757.89,0.0002572,2]
[355070923,1740886302020,-500.0,0.0002572,2]
[355070924,1740886302030,-500.0,0.0002572,2]
[355070925,1740886302039,-502.5849783,0.0002572,2]
[355070926,1740886302048,-1586.33,0.0002572,2]
[355070927,1740886302058,-23789.19,0.0002572,2]
[355070928,1740886302068,-1230.43,0.0002572,2]
[355070929,1740886302078,-279.3582481,0.0002572,2]
[355070930,1740886302087,-500.0,0.0002572,2]
[355070931,1740886302097,-3144.58,0.0002572,2]
[355070932,1740886302106,-500.0,0.0002572,2]
[355070933,1740886302115,-733.81,0.0002572,2]
[355070934,1740886302125,-500.0,0.00025721,2]
[355070935,1740886302134,-526.15,0.00025721,2]
[355070936,1740886302144,-1168.03,0.00025721,2]
[355070937,1740886302153,-500.0,0.00025721,2]
[355070938,1740886302162,-500.0,0.00025721,2]
[355070939,1740886302172,-500.0,0.00025721,2]
[355070940,1740886302181,-930.89,0.00025721,2]
[355070941,1740886302191,-500.0,0.00025721,2]
[355070942,1740886302200,-500.0,0.00025721,2]
[355070943,1740886302209,-602.99,0.00025721,2]
[355070944,1740886302219,-500.0,0.00025721,2]
[355070945,1740886302228,-500.03,0.00025721,2]
[355070946,1740886302238,-912.13,0.00025721,2]
[355070947,1740886302250,-500.0,0.00025721,2]
[355070948,1740886302259,-500.0,0.00025721,2]
[355070949,1740886302268,-500.0,0.00025721,2]
[355070950,1740886302277,-860.85,0.00025721,2]
[355070951,1740886302287,-500.0,0.00025721,2]
[355070952,1740886302296,-500.0,0.00025721,2]
[355070953,1740886302305,-500.0,0.00025721,2]
[355070954,1740886302317,-500.0,0.00025721,2]
[355070955,1740886302326,-500.0,0.00025721,2]
[355070956,1740886302335,-500.0,0.00025721,2]
[355070957,1740886302344,-500.0,0.00025721,2]
[355070958,1740886302354,-1228.22,0.00025721,2]
[355070959,1740886302363,-756.89,0.00025721,2]
[355070960,1740886302372,-585.74,0.00025721,2]
[355070961,1740886302382,-564.12,0.00025721,2]
[355070962,1740886302391,-685.69,0.00025721,2]
[355070963,1740886302401,-500.0,0.00025721,2]
[355070964,1740886302410,-500.0,0.00025721,2]
[355070965,1740886302419,-509.1,0.00025721,2]
[355070966,1740886302429,-500.0,0.00025721,2]
[355070967,1740886302438,-500.0,0.00025721,2]
[355070968,1740886302448,-766.25,0.00025721,2]
[355070969,1740886302457,-500.0,0.00025721,2]
[355070970,1740886302467,-1706.06,0.00025721,2]
[355070971,1740886302476,-500.0,0.00025721,2]
[355070972,1740886302486,-870.92,0.00025721,2]
[355070973,1740886302496,-531.24,0.00025721,2]
[355070974,1740886302506,-818.25,0.00025721,2]
[355070975,1740886302515,-855.68,0.00025721,2]
[355070976,1740886302524,-500.49,0.00025721,2]
[355070977,1740886302534,-500.0,0.00025721,2]
[355070978,1740886302543,-500.0,0.00025721,2]
[355070979,1740886302553,-630.0,0.00025721,2]
[355070980,1740886302563,-500.0,0.00025721,2]
[355070981,1740886302572,-500.0,0.00025721,2]
[355070982,1740886302582,-500.0,0.00025721,2]
[355070983,1740886302591,-500.0,0.00025721,2]
[355070984,1740886302602,-500.0,0.00025721,2]
[355070985,1740886302612,-500.0,0.00025721,2]
[355070986,1740886302622,-500.0,0.00025721,2]
[355070987,1740886302632,-500.0,0.00025721,2]
[355070988,1740886302641,-1052.31,0.00025721,2]
[355070989,1740886302651,-1446.78,0.00025721,2]
[355070990,1740886302660,-500.0,0.00025721,2]
[355070991,1740886302670,-500.0,0.00025721,2]
[355070992,1740886302680,-607.0,0.00025721,2]
[355070993,1740886302689,-500.0,0.00025721,2]
[355070994,1740886302699,-500.0,0.00025721,2]
[355070995,1740886302709,-500.0,0.00025721,2]
[355070996,1740886302719,-164.62689529,0.00025721,2]
[355070997,1740886302728,-500.0,0.00025721,2]
[355070998,1740886302738,-500.0,0.00025721,2]
[355070999,1740886302748,-328.81163342,0.00025721,2]
[355071000,1740886302758,-500.0,0.00025721,2]
[355071001,1740886302768,-500.0,0.00025721,2]
[355071002,1740886302777,-1818.63,0.00025721,2]
[355071003,1740886302787,-500.0,0.00025721,2]
[355071004,1740886302796,-500.0,0.00025721,2]
[355071005,1740886302806,-500.0,0.00025721,2]
[355071006,1740886302815,-500.0,0.00025721,2]
[355071007,1740886302825,-500.0,0.00025721,2]
[355071008,1740886302835,-500.0,0.00025721,2]
[355071009,1740886302844,-618.37,0.00025721,2]
[355071010,1740886302855,-165.56535373,0.00025721,2]
[355071011,1740886302864,-604.16,0.00025721,2]
[355071012,1740886302874,-500.0,0.00025721,2]
[355071013,1740886302883,-507.86991258,0.00025721,2]
[355071014,1740886302893,-537.95562693,0.00025721,2]
[355071015,1740886302902,-510.63611554,0.00025721,2]
[355071016,1740886302912,-503.59832505,0.00025721,2]
[355071017,1740886302921,-500.0,0.00025721,2]
[355071018,1740886302931,-500.0,0.00025721,2]
[355071019,1740886303138,-500.0,0.00025721,2]
[355071020,1740886303151,-938.5,0.00025721,2]
[355071021,1740886303162,-500.0,0.00025721,2]
[355071022,1740886303172,-500.0,0.00025721,2]
[355071023,1740886303183,-500.0,0.00025721,2]
[355071024,1740886303193,-801.7,0.00025721,2]
[355071025,1740886303202,-500.0,0.00025721,2]
[355071026,1740886303212,-500.0,0.00025721,2]
[355071027,1740886303222,-508.09103729,0.00025721,2]
[355071028,1740886303232,-500.0,0.00025721,2]
[355071029,1740886303245,-1129.81,0.00025721,2]
[355071030,1740886303255,-8270.53,0.00025721,2]
[355071031,1740886303265,-613.9959476,0.00025721,2]